Cogmind - Beta 15 @@@ ROGUE MODE // 2025.06.11 @ 12:11:56 Player: DZKane Result: Destroyed by H-71 Marshal with Heavy Mass Driver Performance ------------- Evolutions (5) 2500 Regions Visited (10) 2000 Robots Destroyed (197) 985 Value Destroyed (6359) 6359 Prototype IDs (32) 640 Alien Tech Used (0) 0 Bonus (1787) 1787 TOTAL SCORE: 14271 Bonus ------- High Alert Combat Kills 174 Follower Combat Kills 813 Registered with UFD 300 Met Optimus in HQ 500 Cogmind --------- Core Integrity 0/1000 Matter 261/300 Energy 21/100 System Corruption 11% Temperature Cool (0) Movement Core (50) Location -5/Factory Parts ------- > --- POWER (2) -------- (None) > --- PROPULSION (5) --- (None) > --- UTILITY (6) ------ Hacking Suite Hacking Suite Improved Hacking Suite > --- WEAPON (4) ------- (None) > --- INVENTORY (5) ---- High-capacity Matter Pod (200) Enhanced Optical Array Experimental Sensor Array A0-MCA's Component Scanner Precision Grenade Launcher Peak State ------------ > --- POWER ------------ Neutrino Core Antimatter Reactor > --- PROPULSION ------- Improved Airjet Improved Airjet Improved Airjet Improved Airjet Cooled Airjet > --- UTILITY ---------- Power Amplifier Advanced Cooling System High-capacity Storage Unit Improved Medium Armor Plating Hacking Suite Hacking Suite > --- WEAPON ----------- Mini Assault Cannon Mini Assault Cannon Mini Assault Cannon Powered Hammer > --- INVENTORY -------- Neutrino Core Armored Treads Improved Cooling System Advanced Coolant Injector Medium Storage Unit Medium Storage Unit High-capacity Matter Pod Experimental Sensor Array Authchip [Armor] A0-MCA's Component Scanner High-powered Tractor Beam KE Penetrator Precision Grenade Launcher Precision Grenade Launcher Plasma Cutter [Rating: 85] Favorites ----------- Power Enhanced Nuclear Core Engine Heavy Ion Engine Power Core Enhanced Nuclear Core Reactor Antimatter Reactor Propulsion Armored Treads Treads Armored Treads Leg Carbon-fiber Leg Wheel Armored Wheel Hover Unit Improved Airjet Flight Unit VTOL Module Utility High-capacity Storage Unit Device Improved Cooling System Storage High-capacity Storage Unit Processor Advanced Targeting Computer Hackware Hacking Suite Protection Improved Medium Armor Plating Weapon Mini Assault Cannon Energy Gun Advanced Beam Rifle Energy Cannon Advanced Plasma Cannon Ballistic Gun Heavy Assault Rifle Ballistic Cannon Mini Assault Cannon Launcher Precision Grenade Launcher Special Weapon Plasma Cutter Impact Weapon Powered Hammer Slashing Weapon Greatsword Build | -11 -10 -10 -9 -9 -8 -7 -7 -7 -7 -5 ------- Run | Yrd Mat Min Mat Min Mat Fac Sto Rec Scr Fac Slots Evolved 10 | . . . 2 . 2 2 . . . 4 Power 1 | . . . . . . . . . . 1 Propulsion 3 | . . . 1 . 1 . . . . 1 Utility 4 | . . . . . 1 1 . . . 2 Weapon 2 | . . . 1 . . 1 . . . . Parts Attached 169 | 2 3 10 31 11 21 34 12 . 6 39 Power 15 | . . 2 2 1 2 3 . . 1 4 Engine 8 | . . 2 2 1 1 1 . . 1 . Core 6 | . . . . . 1 2 . . . 3 Reactor 1 | . . . . . . . . . . 1 Propulsion 44 | 2 . . 13 3 9 6 5 . 1 5 Treads 19 | 2 . . 12 . 1 . 4 . . . Leg 4 | . . . . . 2 2 . . . . Wheel 6 | . . . 1 . 1 4 . . . . Hover 6 | . . . . . . . . . 1 5 Flight 9 | . . . . 3 5 . 1 . . . Utility 54 | . 3 2 5 4 3 12 5 . 4 16 Device 15 | . 1 . . 2 1 4 2 . . 5 Storage 7 | . 2 1 1 . . . 1 . 1 1 Processor 11 | . . 1 1 . 1 3 1 . 3 1 Hackware 9 | . . . . . . 2 . . . 7 Protection 12 | . . . 3 2 1 3 1 . . 2 Artifact . | . . . . . . . . . . . Weapon 56 | . . 6 11 3 7 13 2 . . 14 Energy Gun 10 | . . . 1 3 2 3 . . . 1 Energy Cannon 4 | . . . . . 1 . . . . 3 Ballistic Gun 19 | . . 5 8 . 2 1 . . . 3 Ballistic Cannon 8 | . . . . . . 5 . . . 3 Launcher 7 | . . 1 2 . . 1 1 . . 2 Special Weapon 1 | . . . . . . . 1 . . . Impact Weapon 2 | . . . . . . 1 . . . 1 Slashing Weapon 5 | . . . . . 2 2 . . . 1 Piercing Weapon . | . . . . . . . . . . . Special Melee Weapon . | . . . . . . . . . . . Unidentified Prototypes 15 | . . . 4 . 4 4 2 . 1 . Parts Lost 36 | . . . 4 9 1 2 . . . 20 Power 6 | . . . 1 1 1 . . . . 3 Propulsion 13 | . . . . 3 . 1 . . . 9 Utility 8 | . . . 1 2 . . . . . 5 Weapon 9 | . . . 2 3 . 1 . . . 3 Highest Loss Streak 11 | . . . 1 9 1 1 . . . 11 To Critical Strikes 1 | . . . . . 1 . . . . . Average Backups 17 | 6 10 14 19 18 13 19 19 20 20 13 Power . | 1 2 2 . . . . . . . . Propulsion 3 | 4 4 3 4 3 4 3 3 5 5 2 Utility 8 | . 2 4 7 8 5 10 12 12 12 7 Weapon 3 | 1 1 4 5 5 2 4 2 2 2 2 Tool/Special . | . . . . . . . . . . . Unused Backups 71 | . 3 8 21 5 7 11 5 . 3 8 Power 4 | . 1 2 1 . . . . . . . Propulsion 15 | . . 2 6 . 2 3 2 . . . Utility 29 | . 2 1 7 4 1 3 2 . 3 6 Weapon 22 | . . 3 7 1 4 5 1 . . 1 Tool/Special 1 | . . . . . . . . . . 1 Average Slot Usage (%) 94 | . 98 100 99 97 90 89 92 100 100 82 Engine 5 | . 14 14 10 10 7 3 . . . . Core 3 | . . . . . 1 3 7 7 6 3 Treads 19 | . 28 28 31 30 . 4 16 30 30 10 Leg 2 | . . . . . 9 9 3 . . . Wheel 2 | . . . 1 . 6 10 3 . . . Hover 1 | . . . . . . . . . . 11 Flight 1 | . . . . 1 12 . . . . . Device 5 | . 6 2 . 1 8 6 6 7 7 6 Storage 8 | . 19 14 10 10 6 7 7 7 7 4 Processor 7 | . . 11 2 . 7 7 15 15 15 . Hackware 1 | . . . . . . . . . . 15 Protection 3 | . . . 8 9 2 6 . . . 2 Energy Gun 2 | . 14 . . 2 14 . . . . . Ballistic Gun 12 | . 14 27 32 30 5 7 . . . 2 Ballistic Cannon 9 | . . . . . . 11 22 23 23 8 Impact Weapon 2 | . . . . . . . 6 7 7 4 Slashing Weapon 1 | . . . . . 6 4 . . . . Peak Build Rating 85 | 6 10 10 19 21 35 64 63 56 57 85 Average Rating 39 | 6 8 8 15 19 28 52 56 56 55 64 On Entrance 30 | 6 6 10 8 18 20 35 63 56 56 56 Naked Turns . | . . . . . . . . . . . Heaviest Build 108 | 13 38 30 62 64 62 82 83 65 65 108 Greatest Support 80 | 40 40 40 60 60 18 48 80 80 80 80 Greatest Overweight (x) 6 | . . . 4 1 5 6 2 . . 2 Average Overweight (x) 1 | . . . . . 2 3 . . . . Largest Inventory Capacity 20 | 8 15 20 20 20 20 20 20 20 20 20 Average Capacity 18 | 8 13 15 19 19 15 20 20 20 20 14 Most Carried 20 | 6 15 15 20 20 20 20 20 20 20 20 Average Carried 17 | 6 10 14 19 18 13 19 19 20 19 13 Final Capacity 20 | 8 15 15 20 5 20 20 20 20 20 5 Final Carried 20 | 6 15 15 19 5 20 20 20 20 20 5 Class Distribution -------------------- 27% | Commander-Gunner 23% | Mutant 17% | Scavenger-Tank 7% | Tank 6% | Gunner 3% | Scavenger-Gunner 3% | Scavenger-Mutant 3% | Sprinter Dominant Class ---------------- Mutant | -10/Materials Mutant | -10/Mines Scavenger-Tank | -9/Materials Tank | -9/Mines Scavenger-Mutant | -8/Materials Mutant | -7/Factory Commander-Gunner | -7/Storage Commander-Gunner | -7/Recycling Commander-Gunner | -7/Scraptown Scavenger-Tank | -5/Factory Resources | -11 -10 -10 -9 -9 -8 -7 -7 -7 -7 -5 ----------- Run | Yrd Mat Min Mat Min Mat Fac Sto Rec Scr Fac Matter Collected 6805 | 220 260 296 1021 284 269 1770 1021 167 36 1461 Remotely 811 | . . . . . . 244 248 . . 319 Salvage Created 7224 | . 231 369 1379 364 819 1667 614 392 . 1389 Parts 367 | . 15 31 78 17 44 83 31 9 . 59 Haulers Intercepted 16 | . 1 . 6 . 2 1 6 . . . Recyclers Shooed 6 | . 1 . 3 . . 1 1 . . . Parts Field Recycled . | . . . . . . . . . . . Retrieved Matter . | . . . . . . . . . . . Parts Self-Destructed . | . . . . . . . . . . . Prevented . | . . . . . . . . . . . Kills | -11 -10 -10 -9 -9 -8 -7 -7 -7 -7 -5 ------- Run | Yrd Mat Min Mat Min Mat Fac Sto Rec Scr Fac Combat Hostiles Destroyed 139 | . 2 14 23 6 22 25 11 4 . 32 Melee 5 | . . . . . 1 1 . 1 . 2 Guns 61 | . 2 8 19 6 21 4 . . . 1 Cannons 45 | . . . . . . 13 11 1 . 20 AOE 26 | . . 6 4 . . 7 . . . 9 Classes Destroyed 20 | . 4 2 3 2 2 5 . . . 2 Worker 6 | . . . . 1 . 3 1 . . 1 Builder 2 | . . . . . . . . . . 2 Tunneler 3 | . . 1 1 . . 1 . . . . Hauler 17 | . 1 . 6 . 2 1 6 . . 1 Recycler 19 | . 1 . 3 2 . 9 1 3 . . Mechanic 2 | . . . . . . 1 . . . 1 Operator 3 | . . . 1 . . 1 1 . . . Watcher 5 | . 1 . 3 . . 1 . . . . Swarmer 32 | . . 11 7 . 11 . 3 . . . Saboteur 1 | . . . . . . . . . . 1 Grunt 46 | . 2 3 6 4 6 6 5 . . 14 Brawler 3 | . . . 1 . . . . . . 2 Duelist 3 | . . . . . 1 . . . . 2 Protector 3 | . . . . . . 2 . 1 . . Sentry 24 | . . . 9 . 3 4 3 2 . 3 Demolisher 3 | . . . . 2 . . . 1 . . Specialist 4 | . . . . . . 2 . . . 2 Hunter 5 | . . . . . 1 1 . . . 3 Programmer 14 | . . . . . . 9 1 . . 4 Heavy 2 | . . . . . . 1 . . . 1 Best Kill Streak 10 | . 3 6 7 3 4 10 3 2 . 6 Combat Bots Only 8 | . 1 6 7 2 4 8 3 2 . 5 Max Kills in Single Turn 4 | . 1 3 2 2 2 3 1 1 . 4 Gunslinging 1 | . . . . . 1 . . . . . Exploded 3 | . . 3 2 . . 3 . . . 3 Melee 1 | . . . . . 1 1 . 1 . 1 Uniques/NPCs Destroyed . | . . . . . . . . . . . Combat | -11 -10 -10 -9 -9 -8 -7 -7 -7 -7 -5 -------- Run | Yrd Mat Min Mat Min Mat Fac Sto Rec Scr Fac Hostile Shots Fired 1023 | . 8 48 97 48 81 247 108 31 . 355 Missed 320 | . 1 12 24 6 32 88 46 14 . 97 Hits 703 | . 7 36 73 42 49 159 62 17 . 258 Melee 13 | . . . 7 . 2 . . . . 4 Projectile 690 | . 7 36 66 42 47 159 62 17 . 254 AOE 35 | . . . . 29 . . . 1 . 5 Critical Strikes 25 | . . 1 1 . 2 7 3 . . 11 Part Disruptions 1 | . . . . . . . 1 . . . Damage Taken 10660 | . 94 368 1018 1311 551 1460 653 135 . 5070 Core 1857 | . 18 96 90 229 154 113 73 33 . 1051 Absorbed by Shields 577 | . . . . . . 359 . . . 218 Ignored by Resistances 290 | . . . . . . . . . . 290 Regen/Repaired (Parts) 238 | . . . 14 . 151 73 . . . . Core Remaining (%) 62 | 100 . 54 . 20 72 . . . 68 . Volleys Fired 385 | . 16 43 90 22 36 64 36 7 . 71 Largest 4 | . 2 2 3 3 3 4 3 3 . 3 Hottest 200 | . 70 40 69 168 178 160 120 120 . 200 Shots Fired 1016 | . 32 83 258 64 100 166 110 21 . 182 Gun 636 | . 32 80 252 64 100 82 . . . 26 Cannon 354 | . . . . . . 77 110 21 . 146 Launcher 26 | . . 3 6 . . 7 . . . 10 Special . | . . . . . . . . . . . Kinetic 808 | . 16 80 252 45 6 150 110 21 . 128 Thermal 182 | . 16 . . 19 94 9 . . . 44 Explosive 26 | . . 3 6 . . 7 . . . 10 Electromagnetic . | . . . . . . . . . . . Robot Hit Streak 30 | . 7 9 30 9 15 13 12 8 . 19 Robot Miss Streak 5 | . 3 2 3 5 3 5 5 2 . 2 Penetration Max . | . . . . . . . . . . . Secondary Targets 7 | . . 1 3 . 3 . . . . . Max Gunslinging Chain 1 | . . 1 1 . 1 . . . . . Shots Hit Robots 703 | . 22 56 192 34 71 103 82 23 . 120 Core Hits 337 | . 11 32 63 15 33 71 27 7 . 78 Critical Kills 4 | . . . . . . 1 . . . 3 Critical Parts Destroyed 11 | . . 1 1 . . 1 2 1 . 5 Critical Strikes 38 | . 1 1 1 1 8 10 7 1 . 8 Burn 11 | . 1 . . 1 8 1 . . . . Destroy 12 | . . 1 1 . . 2 . . . 8 Blast 11 | . . . . . . 6 5 . . . Smash 3 | . . . . . . . 2 1 . . Sever 1 | . . . . . . 1 . . . . Melee Attacks 83 | . . . . . 4 41 12 8 . 18 Impact 35 | . . . . . . 1 12 8 . 14 Slashing 48 | . . . . . 4 40 . . . 4 Piercing . | . . . . . . . . . . . Sneak Attacks 14 | . . . . . 1 6 1 5 . 1 Combat Hostiles 2 | . . . . . . . . 2 . . Follow-up Attacks . | . . . . . . . . . . . Damage Inflicted 18461 | . 231 656 2568 603 1431 4511 2376 952 . 5133 Guns 6320 | . 231 470 2343 603 1300 984 . . . 389 Cannons 6443 | . . . . . . 1181 2107 436 . 2719 Explosions 3637 | . . 186 211 . . 1461 . . . 1779 Melee 2042 | . . . . . 131 880 269 516 . 246 Ramming 19 | . . . 14 . . 5 . . . . Kinetic 9932 | . 67 470 2343 386 79 2050 2107 436 . 1994 Thermal 3387 | . 164 . . 217 1221 115 . . . 1670 Explosive 3081 | . . 186 211 . . 1461 . . . 1223 Electromagnetic . | . . . . . . . . . . . Impact 996 | . . . . . . . 269 516 . 211 Slashing 1046 | . . . . . 131 880 . . . 35 Piercing . | . . . . . . . . . . . Highest Corruption 11 | . . . 1 1 . 5 6 6 . 11 Average Corruption 3 | . . . 1 1 . 4 5 6 . 3 Corruption Purged . | . . . . . . . . . . . Corruption Blocked . | . . . . . . . . . . . Effects 135 | . . . 13 5 . 50 26 28 . 13 Message Errors 30 | . . . 3 1 . 10 7 6 . 3 Matter Fused 28 | . . . 3 . . 11 4 5 . 5 Heat Flow Errors 17 | . . . 2 1 . 5 1 7 . 1 Energy Discharges 19 | . . . 1 1 . 10 3 4 . . Parts Rejected 1 | . . . . . . . 1 . . . Parts Fused 2 | . . . . . . 1 . . . 1 Data Loss (minor) 16 | . . . 3 2 . 5 4 1 . 1 Data Loss (major) 11 | . . . 1 . . 2 3 4 . 1 Misfires 4 | . . . . . . 2 2 . . . Alerts 4 | . . . . . . 2 1 1 . . Weapon Failures 3 | . . . . . . 2 . . . 1 Overload Shots . | . . . . . . . . . . . Overflow Damage 710 | . . . . . . 223 170 186 . 131 Projectiles 35 | . . . . . . 12 6 9 . 8 Explosions 105 | . . . . . . 34 . . . 71 Melee 570 | . . . . . . 177 164 177 . 52 Knockbacks 23 | . . . . . . 3 8 1 . 11 Impact 4 | . . . . . . . 2 . . 2 Kinetic 19 | . . . . . . 3 6 1 . 9 Secondary . | . . . . . . . . . . . Self-Inflicted Damage 138 | . . 33 16 . . 2 . . . 87 Shots 4 | . . 2 1 . . . . . . 1 Rammed 4 | . . . 2 . . 1 . . . 1 Targets Rammed 4 | . . . 2 . . 1 . . . 1 Kicked . | . . . . . . . . . . . Crushed . | . . . . . . . . . . . Highest Temperature 316 | . 87 36 270 226 204 316 164 220 . 270 Average Temperature 54 | . 21 23 33 48 53 73 66 78 . 67 Received Heat Transfer 1957 | . 51 84 249 111 81 250 261 24 . 846 Effects 2 | . . . . . . 1 . . . 1 Energy Bleed 2 | . . . . . . 1 . . . 1 Siege Activations . | . . . . . . . . . . . Martial Activations . | . . . . . . . . . . . Shielding Activations . | . . . . . . . . . . . Robots Disrupted . | . . . . . . . . . . . Combat Hostiles . | . . . . . . . . . . . Robots Corrupted 5 | . . . . . . . 1 3 . 1 Combat Hostiles 1 | . . . . . . . . 1 . . Parts Fried 10 | . . . . . . . 1 6 . 3 Impact Corruptions 15 | . . . . . . . 4 9 . 2 Robots Melted . | . . . . . . . . . . . Combat Hostiles . | . . . . . . . . . . . Parts Melted 16 | . . . . 1 13 . 1 . . 1 Heat Transferred 6032 | . 555 . . 555 2997 296 . . . 1629 Parts Sabotaged . | . . . . . . . . . . . Parts Stolen . | . . . . . . . . . . . Parts Stripped . | . . . . . . . . . . . Power Chain Reactions . | . . . . . . . . . . . Alert | -11 -10 -10 -9 -9 -8 -7 -7 -7 -7 -5 ------- Run | Yrd Mat Min Mat Min Mat Fac Sto Rec Scr Fac Maximum Alert Level 3 | . . 1 1 . 1 2 3 1 . 3 Low Security (%) 60 | 100 100 99 97 100 22 38 10 78 . 36 Level 1 30 | . . . 2 . 77 56 28 21 . 45 Level 2 5 | . . . . . . 5 32 . . 11 Level 3 3 | . . . . . . . 28 . . 6 Level 4 . | . . . . . . . . . . . Level 5 . | . . . . . . . . . . . High Security . | . . . . . . . . . . . Max Security . | . . . . . . . . . . . Peak Influence 778 | . 50 201 217 42 396 449 778 284 . 736 Initial 284 | . . . 29 25 8 85 202 284 . . Average 193 | . 10 119 114 10 252 184 491 157 . 271 Influence Increases 6043 | . 92 522 826 165 688 926 1038 250 . 1536 Destroy 0b10 Robot/C 3120 | . 40 280 500 120 440 460 440 100 . 740 Destroy 0b10 Robot/NC 340 | . 15 15 70 15 10 95 55 45 . 20 Destroy Leader 794 | . 14 50 168 30 94 154 144 . . 140 Allied During Kill 423 | . . 11 10 . . . 295 56 . 51 Successful Hack 200 | . 8 . 14 . 19 101 6 14 . 38 Select Force Hacks 60 | . . . 30 . . . . 30 . . Disable Machine 285 | . . 30 . . . 45 60 . . 150 Destroy Structure 341 | . . 16 19 . 5 71 23 5 . 202 Partial Spotted 60 | . . . 15 . 30 . 15 . . . Lose Combat Pursuer 420 | . 15 120 . . 90 . . . . 195 Influence Decreases 5321 | . 92 446 836 208 523 669 753 910 70 814 Entered New Map 965 | . . . 47 41 15 103 243 446 70 . Time Decay 3658 | . 92 446 619 157 490 546 470 404 . 434 Lost Part 280 | . . . 40 10 10 20 . . . 200 Lost Ally 340 | . . . 60 . . . 40 60 . 180 Purge Threat 78 | . . . 70 . 8 . . . . . Squads Dispatched 29 | . . . 2 . 1 9 4 . . 13 Investigation 7 | . . . 1 . 1 1 . . . 4 Extermination 9 | . . . . . . 5 2 . . 2 Reinforcement 11 | . . . 1 . . 3 2 . . 5 Assault . | . . . . . . . . . . . Garrison 2 | . . . . . . . . . . 2 Intercept . | . . . . . . . . . . . Searches Triggered . | . . . . . . . . . . . Construction Impeded 2 | . . . . . . 1 . . . 1 Haulers Reinforced 1 | . . . . . . . 1 . . . Active Scanning Responses . | . . . . . . . . . . . Cargo Convoy Interrupts 2 | . . . . . . 1 . . . 1 Stealth | -11 -10 -10 -9 -9 -8 -7 -7 -7 -7 -5 --------- Run | Yrd Mat Min Mat Min Mat Fac Sto Rec Scr Fac Distress Signals 11 | . 1 . 3 . 1 . 4 . . 2 Communications Jammed . | . . . . . . . . . . . Distress Signals . | . . . . . . . . . . . Times Spotted 225 | . 4 23 39 6 31 36 23 8 . 55 Peak Tracking Total 12 | . 4 6 6 2 6 12 3 2 . 11 Tactical Retreats 18 | . 1 8 . . 3 . . . . 6 Traps | -11 -10 -10 -9 -9 -8 -7 -7 -7 -7 -5 ------- Run | Yrd Mat Min Mat Min Mat Fac Sto Rec Scr Fac Traps Triggered 5 | . . . 1 . 1 2 . . . 1 Indirectly . | . . . . . . . . . . . Trap Hack Attempts . | . . . . . . . . . . . Triggered . | . . . . . . . . . . . Disarmed . | . . . . . . . . . . . Reprogrammed . | . . . . . . . . . . . Reused . | . . . . . . . . . . . Traps Extracted . | . . . . . . . . . . . Installed . | . . . . . . . . . . . Triggered . | . . . . . . . . . . . Machines | -11 -10 -10 -9 -9 -8 -7 -7 -7 -7 -5 ---------- Run | Yrd Mat Min Mat Min Mat Fac Sto Rec Scr Fac Machines Disabled 19 | . . 2 . . . 3 4 . . 10 Max in Single Turn 4 | . . 2 . . . 1 1 . . 4 Garrison Access 1 | . . . . . . . . . . 1 Machines Repaired . | . . . . . . . . . . . Machines Dismantled 2 | . . . . . . . 2 . . . Machines Sabotaged . | . . . . . . . . . . . Overloaded Fab Kills . | . . . . . . . . . . . Hacking | -11 -10 -10 -9 -9 -8 -7 -7 -7 -7 -5 --------- Run | Yrd Mat Min Mat Min Mat Fac Sto Rec Scr Fac Machines Accessed 52 | . 2 . 11 . 4 10 9 4 4 8 Terminals 33 | . 2 . 9 . 2 7 8 3 . 2 Fabricators 2 | . . . . . . 1 . . . 1 Repair Stations 4 | . . . 1 . 1 1 1 . . . Recycling Units 6 | . . . 1 . . . . 1 . 4 Scanalyzers 2 | . . . . . 1 1 . . . . Garrison Access 1 | . . . . . . . . . . 1 Total Hacks 127 | . 5 . 26 . 19 26 17 6 10 18 Successful 74 | . 2 . 15 . 15 17 3 3 10 9 Failed 53 | . 3 . 11 . 4 9 14 3 . 9 Catastrophic 8 | . 1 . 2 . . 1 3 1 . . Database Lockouts . | . . . . . . . . . . . Manual 47 | . 1 . 15 . 2 11 2 3 . 13 Terminals 77 | . 5 . 23 . 4 20 16 4 . 5 Fabricators 3 | . . . . . . 1 . . . 2 Repair Stations 17 | . . . 2 . 12 2 1 . . . Recycling Units 12 | . . . 1 . . . . 2 . 9 Scanalyzers 6 | . . . . . 3 3 . . . . Garrison Access 2 | . . . . . . . . . . 2 Terminal Hacks 35 | . 2 . 6 . 1 9 2 2 10 3 Record 11 | . . . . . . 1 . . 9 1 Robot Analysis 1 | . . . . . . 1 . . . . Prototype ID Bank 6 | . . . 3 . . 1 . 2 . . Open Door 2 | . . . . . . . 2 . . . Level Access Points 2 | . 1 . . . . . . . . 1 Branch Access Points 2 | . . . . . . 1 . . . 1 Unreport Threat 2 | . . . 1 . 1 . . . . . Locate Traps 3 | . 1 . . . . 2 . . . . Transport Status 1 | . . . 1 . . . . . . . Hauler Manifests 2 | . . . 1 . . 1 . . . . Zone Layout 2 | . . . . . . 2 . . . . Proto ID Catalog 1 | . . . . . . . . . 1 . Fabricator Hacks 1 | . . . . . . 1 . . . . Build 1 | . . . . . . 1 . . . . Repair Station Hacks 15 | . . . 2 . 11 2 . . . . Scan Component 8 | . . . 1 . 6 1 . . . . Repair 7 | . . . 1 . 5 1 . . . . Recycling Unit Hacks . | . . . . . . . . . . . Scanalyzer 5 | . . . . . 2 3 . . . . Insert Component 3 | . . . . . 1 2 . . . . Analyze 2 | . . . . . 1 1 . . . . Garrison Access Hacks 1 | . . . . . . . . . . 1 Seal Access 1 | . . . . . . . . . . 1 Unauthorized Hacks 17 | . . . 7 . 1 2 1 1 . 5 Terminals 11 | . . . 6 . 1 2 1 . . 1 Botnet 6 | . . . 1 . 1 2 1 . . 1 Skim 5 | . . . 5 . . . . . . . Fabricators . | . . . . . . . . . . . Repair Stations . | . . . . . . . . . . . Recycling Units 6 | . . . 1 . . . . 1 . 4 Tunnel 2 | . . . 1 . . . . 1 . . Fedlink 4 | . . . . . . . . . . 4 Scanalyzers . | . . . . . . . . . . . Garrison Access . | . . . . . . . . . . . Data Cores Recovered . | . . . . . . . . . . . Used . | . . . . . . . . . . . Hacking Detections 39 | . 2 . 7 . 4 10 9 2 . 5 Full Trace Events 1 | . . . . . . 1 . . . . Feedback Events . | . . . . . . . . . . . Feedback Blocked . | . . . . . . . . . . . Robot Schematics Acquired . | . . . . . . . . . . . Robots Built . | . . . . . . . . . . . Authchips . | . . . . . . . . . . . Time . | . . . . . . . . . . . Total Robot Build Rating . | . . . . . . . . . . . Part Schematics Acquired 1 | . . . . . . 1 . . . . Parts Built 2 | . . . . . . 2 . . . . Authchips . | . . . . . . . . . . . Time 95 | . . . . . . 95 . . . . Total Part Build Rating 10 | . . . . . . 10 . . . . Parts Repaired 7 | . . . 1 . 5 1 . . . . Time 334 | . . . 26 . 264 44 . . . . Parts Recycled . | . . . . . . . . . . . Recycled Matter . | . . . . . . . . . . . Retrieved Matter . | . . . . . . . . . . . Retrieved Components . | . . . . . . . . . . . Parts Scanalyzed 2 | . . . . . 1 1 . . . . Part Schematics Acquired 1 | . . . . . . 1 . . . . Parts Damaged . | . . . . . . . . . . . Bothacking | -11 -10 -10 -9 -9 -8 -7 -7 -7 -7 -5 ------------ Run | Yrd Mat Min Mat Min Mat Fac Sto Rec Scr Fac Used RIF Installer . | . . . . . . . . . . . Robots Hacked . | . . . . . . . . . . . Non-combat . | . . . . . . . . . . . Combat . | . . . . . . . . . . . Robot Hacks Applied . | . . . . . . . . . . . Relay Couplers Released . | . . . . . . . . . . . Fabnet Peak Effective % . | . . . . . . . . . . . Robots Rewired 21 | . . . . . . . . 21 . . Allies Hacked . | . . . . . . . . . . . Hacks Repelled . | . . . . . . . . . . . Allies | -11 -10 -10 -9 -9 -8 -7 -7 -7 -7 -5 -------- Run | Yrd Mat Min Mat Min Mat Fac Sto Rec Scr Fac Total Allies 34 | . . 3 . . . . 10 21 . . Largest Group 22 | . . 3 3 . . . 10 22 22 19 Highest-Rated Group 341 | . . 40 40 . . . 173 341 341 280 Highest-Rated Ally 34 | . . 16 16 . . . 29 34 32 32 Total Orders . | . . . . . . . . . . . Ally Attacks 188 | . . . 19 . . . 104 29 . 36 Total Damage 2920 | . . . 225 . . . 1462 503 . 730 Kills 28 | . . . 2 . . . 15 5 . 6 Allies Corrupted 1 | . . . . . . . . . . 1 Allies Melted . | . . . . . . . . . . . Intel | -11 -10 -10 -9 -9 -8 -7 -7 -7 -7 -5 ------- Run | Yrd Mat Min Mat Min Mat Fac Sto Rec Scr Fac Active Infowar (turns) 2136 | . . . . 34 465 1635 2 . . . Sensors 1343 | . . . . . 15 1326 2 . . . Seismic 808 | . . . . 34 465 309 . . . . Robot Analysis Total 1 | . . . . . . 1 . . . . Derelict Logs Recovered 2 | . . 1 . 1 . . . . . . Drone Launches . | . . . . . . . . . . . Drone Recoveries . | . . . . . . . . . . . Exploration | -11 -10 -10 -9 -9 -8 -7 -7 -7 -7 -5 ------------- Run | Yrd Mat Min Mat Min Mat Fac Sto Rec Scr Fac Turns Passed 14108 | 10 389 1117 2549 701 1390 2530 1199 962 1848 1413 Spaces Moved 7380 | 5 194 593 1265 274 693 1386 596 398 1059 917 Core 228 | . . . . . . . . . . 228 Treads 4131 | 5 194 593 1076 251 . . 313 398 1059 242 Legs 22 | . . . . . . 22 . . . . Wheels 2210 | . . . 189 . 374 1364 283 . . . Hover 447 | . . . . . . . . . . 447 Flight 342 | . . . . 23 319 . . . . . Fastest Speed 26 | 160 160 160 110 29 26 115 130 170 170 34 Average Speed 147 | 160 160 160 158 209 94 144 151 170 170 109 Slowest Speed 330 | 160 160 160 240 240 165 260 250 170 170 330 Overloaded Moves . | . . . . . . . . . . . Propulsion Burnouts . | . . . . . . . . . . . Robots Hopped 2 | . . . . . 2 . . . . . Potential Cave-ins . | . . . . . . . . . . . Cave-ins Triggered . | . . . . . . . . . . . Exploration Rate (%) 56 | 2 37 97 85 57 36 38 95 65 79 28 Regions Visited 10 Branch Regions 5 Pre-discovered Areas 5 | . . . 2 1 . . . 1 . 1 Known Exits Taken 5 | . . 1 1 1 . 1 1 . . . Unknown Exits Taken 5 | 1 1 . . . 1 . . 1 1 . Scrap Searched 10 | . . 1 . . . . . . 9 . Spaces Dug 48 | . . . 9 . . 24 3 . . 12 Terrain Destroyed 257 | . . 17 16 . . 73 22 5 . 124 Melee 38 | . . . . . . 24 3 . . 11 Projectile 69 | . . . . . . 17 19 5 . 28 AOE 150 | . . 17 16 . . 32 . . . 85 Terrain Rammed . | . . . . . . . . . . . Walls Destroyed . | . . . . . . . . . . . Machines Disabled . | . . . . . . . . . . . Actions | -11 -10 -10 -9 -9 -8 -7 -7 -7 -7 -5 --------- Run | Yrd Mat Min Mat Min Mat Fac Sto Rec Scr Fac Total 9705 | 6 244 704 1651 356 1348 1732 762 654 1107 1141 Wait 1028 | . 19 36 150 34 542 93 47 50 26 31 Move 7366 | 4 193 592 1264 273 688 1385 595 397 1058 917 Hop 2 | . . . . . 2 . . . . . Pick Up 147 | . 10 6 49 3 26 29 11 . 5 8 Fast Attach 81 | . 1 1 7 2 13 18 13 . 3 23 Attach 41 | . 1 1 5 8 4 9 . . . 13 Detach 9 | . 1 2 . . 5 1 . . . . Swap 123 | 2 1 9 32 3 8 27 11 . 6 24 Drop 212 | . 2 14 52 11 20 48 21 . 9 35 Fire 385 | . 16 43 90 22 36 64 36 7 . 71 Melee 83 | . . . . . 4 41 12 8 . 18 Ram 2 | . . . . . . 1 . . . 1 Kick . | . . . . . . . . . . . Crush 2 | . . . 2 . . . . . . . Escape Stasis 16 | . . . . . . 16 . . . . Rewire 192 | . . . . . . . . 192 . . Trap . | . . . . . . . . . . . Miscellaneous 16 | . . . . . . . 16 . . . Route ------- -11/Scrapyard -10/Materials (discovered 4 exits: *Mat x3 / [*Min]) -10/Mines (discovered 2 exits: *Mat x2) -9/Materials (discovered 4 exits: *Mat x3 / *Min) -9/Mines -8/Materials -7/Factory (discovered 4 exits: *Fac / *Sto / Low x2) -7/Storage (discovered 2 exits: *Fac / *Rec) -7/Recycling -7/Scraptown -5/Factory (discovered 8 exits: *Fac x4 / *Upp x2 / Ext x2) History --------- Turn | Location | Event 4 | -11/Scrapyard | Discovered new exit (range 2) 11 | -11/Scrapyard | Entered Materials 142 | -10/Materials | Discovered new exit (range 8) 150 | -10/Materials | Identified exit to Materials 285 | -10/Materials | Discovered new exit (range 15) 309 | -10/Materials | Build established: Mutant 400 | -10/Materials | Entered Mines 417 | -10/Mines | Discovered exit to Materials (range 15) 1144 | -10/Mines | Learned location of 1 exit from Materials 1357 | -10/Mines | Assisted by bots powering up and referring to "LRC-V3" 1494 | -10/Mines | Discovered exit to Materials (range 3) 1517 | -10/Mines | Entered Materials 1517 | -9/Materials | Accompanied by 3 allies 1517 | -9/Materials | Evolved 2 slots: Propulsion x1, Weapon x1 1518 | -9/Materials | Identified exit to Mines 1686 | -9/Materials | Lost 3 allies 1939 | -9/Materials | Build established: Scavenger-Gunner 2151 | -9/Materials | Destroyed 7 combat bots 2422 | -9/Materials | Build established: Scavenger-Tank 2476 | -9/Materials | Discovered new exit (range 12) 2514 | -9/Materials | Identified exit to Materials 2582 | -9/Materials | Learned Storage trap positions 2642 | -9/Materials | Learned Storage stockpile data 2692 | -9/Materials | Learned location of 1 exit from Storage 2731 | -9/Materials | Learned Storage security intel 2801 | -9/Materials | Learned location of 1 exit from Storage 2853 | -9/Materials | Loaded intel: 12 trap records 3123 | -9/Materials | Discovered exit to Materials (range 10) 3941 | -9/Materials | Repaired Hcp. Storage Unit 4066 | -9/Materials | Entered Mines 4095 | -9/Mines | Found a damaged Exp. Sensor Array with a note attached 4098 | -9/Mines | Found Prototype Device 4557 | -9/Mines | Discovered exit to Materials (range 5) 4574 | -9/Mines | Build established: Tank 4666 | -9/Mines | Assembled infested the area 4690 | -9/Mines | Core integrity fell below 50% 4746 | -9/Mines | Lost 9 parts (1p3n2u3w) 4767 | -9/Mines | Entered Materials 4767 | -8/Materials | Evolved 2 slots: Propulsion x1, Utility x1 4768 | -8/Materials | Identified Exp. Sensor Array 5068 | -8/Materials | Build established: Sprinter 5453 | -8/Materials | Discovered new exit (range 16) 5675 | -8/Materials | Repaired Seismic Detector 5708 | -8/Materials | Repaired Cooling System 5762 | -8/Materials | Repaired Carbon-fiber Leg 5872 | -8/Materials | Repaired Exp. Sensor Array 5933 | -8/Materials | Repaired Imp. VTOL Module 6157 | -8/Materials | Entered Factory 6157 | -7/Factory | Evolved 2 slots: Utility x1, Weapon x1 6158 | -7/Factory | Identified exit to Storage 6364 | -7/Factory | Discovered new exit (range 7) 6421 | -7/Factory | Identified exit to Factory 6655 | -7/Factory | Build established: Mutant 6918 | -7/Factory | Cargo convoy interrupted 6963 | -7/Factory | Destroyed 8 combat bots 7215 | -7/Factory | Build established: Tank 7523 | -7/Factory | Repaired Hvy. Missile Launcher 7955 | -7/Factory | Build established: Mutant 8022 | -7/Factory | Identified exit to Lower Caves 8372 | -7/Factory | Fabricated Adv. Signal Interpreter? 8687 | -7/Factory | Entered Storage 8688 | -7/Storage | Identified exit to Recycling 8689 | -7/Storage | Loaded intel: 11 trap records 8818 | -7/Storage | Assisted by bots powering up and referring to "LRC-V3" 8847 | -7/Storage | Used back door to open Recycling access 9117 | -7/Storage | Build established: Commander-Gunner 9886 | -7/Storage | Entered Recycling 9886 | -7/Recycling | Accompanied by 4 allies 10346 | -7/Recycling | Scanned before Scraplab entrance 10781 | -7/Recycling | Entered Scraplab 10795 | -7/Recycling | Discovered new exit (range 2) 10848 | -7/Recycling | Entered Scraptown 10848 | -7/Scraptown | Accompanied by 22 allies 10848 | -7/Scraptown | System corruption cleaned by C-Scrubber 11107 | -7/Scraptown | Visited Awakened 11132 | -7/Scraptown | Visited Bundlers 11241 | -7/Scraptown | Visited Assassins FH 11280 | -7/Scraptown | Visited Shadow of the Wyrm 11570 | -7/Scraptown | Visited IN-MT5's Study 11606 | -7/Scraptown | Visited Symbiants 11662 | -7/Scraptown | Visited UFD Registry 11662 | -7/Scraptown | Registered with UFD as "Nuketail" 11706 | -7/Scraptown | Visited Junk Repository 11766 | -7/Scraptown | Visited Observation Area 11832 | -7/Scraptown | Visited Abandonware Association 11856 | -7/Scraptown | Learned abandonware demo "ERRANTS.EXE" 11856 | -7/Scraptown | Learned abandonware demo "POISON.EXE" 12075 | -7/Scraptown | Visited Curators Association 12114 | -7/Scraptown | Visited DA-N13 Charitable Foundation 12121 | -7/Scraptown | Found DCF Scrap (27 items) 12184 | -7/Scraptown | Visited Scrap Suit Storage 12242 | -7/Scraptown | Visited Science Guys 12320 | -7/Scraptown | Visited Junk Repository 12367 | -7/Scraptown | Visited Chapter 10 12423 | -7/Scraptown | Visited A0-MCA Data Center 12434 | -7/Scraptown | Given an A- rating by A0-MCA 12443 | -7/Scraptown | Found A0-MCA's Component Scanner 12566 | -7/Scraptown | Met Optimus 12566 | -7/Scraptown | Accepted into 0bPrime 12658 | -7/Scraptown | Discovered new exit (range 5) 12696 | -7/Scraptown | Entered Factory 12696 | -5/Factory | Accompanied by 19 allies 12696 | -5/Factory | Evolved 4 slots: Power x1, Propulsion x1, Utility x2 12780 | -5/Factory | Loaded intel: 8 recycling unit locations 12941 | -5/Factory | Lost 12 allies 13008 | -5/Factory | Lost 6 allies 13362 | -5/Factory | Discovered new exit (range 11) 13373 | -5/Factory | Lost 3 parts (2n1u) 13437 | -5/Factory | Identified exit to Upper Caves 13437 | -5/Factory | Identified exit to Extension 13475 | -5/Factory | Spotted B-75 Beast 13561 | -5/Factory | Learned location of Protoforge (-2) 13637 | -5/Factory | Build established: Scavenger-Tank 13844 | -5/Factory | Found Powered Armor 13900 | -5/Factory | Cargo convoy interrupted 13934 | -5/Factory | Garrison activated, responded to threat 13957 | -5/Factory | Core integrity fell below 50% 13985 | -5/Factory | System corruption reached 10% 14012 | -5/Factory | Lost 11 parts (1p6n2u2w) 14082 | -5/Factory | Identified exit to Factory 14105 | -5/Factory | Core integrity fell below 20% 14109 | -5/Factory | Destroyed by H-71 Marshal with Heavy Mass Driver Last Messages --------------- A red dwarf star system, fourth nearest from the Sun at 2.39 parsecs. Destination of the [ISCS Leo]. >>Access(Main) Found 4 level access points to Factory: (28,179) (90,23) (32,55) (118,65) Map updated. 14090_ Connecting with Garrison Access... >>Seal Access door sealed. 14094_ System corrupted: Matter fused (-7). 14099_ ALERT: Suspicious intruders detected, dispatching Cutter reinforcements to area. 14104_ Knocked back. 14106_ Penetrated by Slug. 14106_ Knocked back. 14108_ Adv. Cooling System destroyed. Map ----- +----------------------------------------------------+ | ?????????????????????????????????????????????????? | | ?????????????????????????????????????????????????? | | ?????????????????????????????????????????????????? | | ?????????????????????????????????????????????????? | | ?????????????????????????????????????????????????? | | ?????????????????????????????????????????????????? | | ?????????????????????????????????????????????????? | | ?????????????????????????????????????????????????? | | ?????????????????????????????????????????????????? | | ??????????????????????? ???????????????????????? | | ????????????????????? ???????????????????????? | | ????????????????????# ###???????#####????????? | | ????????????????????# # ?????? #????????? | | ????????????????????# # "????" #????????? | | ????????????????????# # """""" #????????? | | ????????????????????# """""" #????????? | | ????????????????????# """""" #????????? | | ????????????????????# / ??????????? | | ????????????????????# # #?????????????? | | ???????????????=????# ! #?????????????? | | ?????????????? ==???# #?????????????? | | ??????????????? ?# """ #?????????????? | | ????????????????""" # """ #?????????????? | | ????????????????""" """ #?????????????? | | ?????????????"" """ # F" #?????????????? | | ????????????"" @H c """ #?????????????? | | ??????????????###### % c "" #?????????????? | | ???????????? c #???#+##??????? | | ???????????? #######+##??? #??????? | | ??????????? #?????# #???# #??????? | | ???????????? #?????# #???# #??????? | | ???????????? #?????# #???# #??????? | | ????????????###" ## #?????# #???# #??????? | | ??????????????#"??# #?????# #???# #??????? | | ??????????????#???# ??????# #???# #??????? | | ??????????????????# ??????# #???# #??????? | | ??????????????????# < ??????# #???# #??????? | | ??????????????????# ??????# #???# ######## | | ??????????????????# ??????# ##### | | ?????????????????????#+###??????# ![ | | ????????????????????????????????## ![ | | ?????????????????????????????????# """"" | | ?????????????????????????????????# """"" | | ?????????????????????????????????# """ | | ?????????????????????????????????# | | ?????????????????????????????????# | | ?????????????????????????????????# ####" "#### | | ?????????????????????????????????# #??#"G"# | | ?????????????????????????????????#######??#"""# " | | ??????????????????????????????????????????##### T | +----------------------------------------------------+ Best States ------------- Heat Dissipation 71 Energy Generation 41 Energy Capacity 540 Matter Stores 300 Matter Capacity 300 Sight Range 16 Robot Scan Range 20 Terrain Scan Density 85 Power Amplification 20 Armor Coverage 400 Resistance: KI 30 Evasion (%) 64 Targeting Accuracy 8 Core Analysis 6 Armor Integrity Analysis 30 Recoil Reduction 4 Offensive Hacking 50 Authchip Count 4 Item Schematics ----------------- Hacking Suite | -7/Factory | Scanalyzed Robot Schematics ------------------ None Fabricated ------------ Adv. Signal Interpreter | x2 | -7/Factory | Preloaded Repaired ---------- Hcp. Storage Unit | 97% | -9/Materials Seismic Detector | 10% | -8/Materials Cooling System | 26% | -8/Materials Carbon-fiber Leg | 37% | -8/Materials Exp. Sensor Array | 62% | -8/Materials Imp. VTOL Module | 68% | -8/Materials Hvy. Missile Launcher | 14% | -7/Factory Alien Tech Used ----------------- None Achievements -------------- None Challenges ------------ None Game ------ Seed RagnarokTractorGun Manual? 0 Play Time 02:09:59 Cumulative 248.4 hours Start 2025.06.11 @ 09:49:18 End 2025.06.11 @ 12:11:56 Sessions 1 Manual Loads 0 Difficulty Rogue Special Mode None Game No. 146 Rogue 146 Adventurer 0 Explorer 0 Win Type - Total 11 Types 11/0/0/0/0/0/0/0/0/0 Lore% 69 Gallery% 68 Achievement% 61 Wizard Run 0 Options --------- Layout 1 ASCII 0 Keyboard 0 Movement Numpad Keybinds 0 Fullscreen 1 Font 24/Smallcaps Map View 50x35 Zoom Use 0% Tactical HUD 1 Map Filters NONE Filters NONE Steam 1 RUN: 98a4fdd0-8bf2-4c3e-a5d9-dc570ea3c298